bitfinex-derivatives/quotes_ETHF0:USTF0_20210107
["timestamp","ask_amount","ask_price","bid_price","bid_amount"]
[1610051769995,39.97692318,1233.3,1232.1,3.1779]
[1610051770195,9.71400231,1232.9,1231.8,2.7697]
[1610051770397,11.83230231,1232.9,1231.7,0.49719569]
[1610051770595,9.71588218,1232.7,1231.6,65.4001]
[1610051770797,6.22548366,1232.5,1231.6,65.4001]
[1610051770995,36.22548366,1232.5,1231.3,0.49754524]
[1610051771196,9.71767581,1232.4,1231.2,0.49774495]
[1610051771398,30.0,1232.3,1231.2,0.49774495]
[1610051771598,30.0,1232.3,1231.0,0.49817076]
[1610051771599,4.00959,1231.5,1231.0,0.49817076]
[1610051771999,4.00959,1231.5,1230.9,4.00959]
[1610051773199,2.5266,1231.5,1230.6,0.4982244]
[1610051773401,2.5266,1231.5,1230.5,0.49803269]
[1610051773600,2.5266,1231.5,1231.4,4.00959]
[1610051774202,9.70354522,1231.9,1231.4,4.00959]
[1610051774402,3.475,1231.9,1231.4,4.00959]
[1610051775604,3.475,1231.9,1231.8,4.00959]
[1610051776005,3.475,1231.9,1231.8,6.38119]
[1610051776805,6.912,1232.2,1231.8,6.38119]
[1610051777605,10.92159,1232.2,1231.8,6.38119]
[1610051778207,6.912,1232.2,1231.8,6.38119]
[1610051779607,6.912,1232.2,1232.1,4.00959]
[1610051780007,6.912,1232.2,1232.1,6.91539]
[1610051783210,3.475,1232.7,1232.1,6.91539]
[1610051783615,3.475,1232.7,1232.6,4.00959]
[1610051783810,3.475,1232.7,1232.6,6.59499]
[1610051786310,7.40983442,1233.3,1232.6,13.83359]
[1610051786514,13.18584467,1233.5,1232.6,6.59499]
[1610051786712,3.475,1233.5,1232.7,56.3765]
[1610051787711,3.475,1233.5,1233.4,4.00959]
[1610051789513,3.475,1233.5,1233.3,2.8774]
[1610051789713,3.475,1233.5,1232.6,2.5854]
[1610051789714,4.00959,1233.4,1233.1,4.00959]
[1610051790513,10.23128646,1233.4,1233.1,4.00959]
[1610051790914,13.72083093,1233.4,1233.1,4.00959]
[1610051791320,9.71308987,1233.3,1233.1,4.00959]
[1610051791723,6.2231284,1233.2,1233.1,4.00959]
[1610051792022,0.49785027,1233.2,1233.1,4.00959]
[1610051792222,9.71279109,1233.4,1233.1,4.00959]
[1610051792422,6.22295687,1233.4,1233.1,4.00959]
[1610051792822,15.26197882,1233.5,1233.1,4.00959]
[1610051793424,5.5505,1233.5,1233.1,4.00959]
[1610051793823,3.475,1233.5,1233.4,4.00959]
[1610051795023,3.475,1233.5,1233.4,56.04149]
[1610051797926,9.70689024,1234.1,1233.4,56.04149]
[1610051798527,9.70382254,1234.3,1233.4,56.04149]
[1610051798928,3.475,1234.4,1233.4,56.04149]
[1610051799827,3.475,1234.4,1234.3,4.00959]
[1610051800227,3.475,1234.4,1234.0,2.2869]
[1610051800627,6.5554,1234.4,1234.0,2.2869]
[1610051800828,6.5554,1234.4,1234.0,11.5827]
[1610051801728,6.5554,1234.4,1234.3,4.00959]
[1610051801928,3.0804,1234.4,1234.3,4.00959]
[1610051802130,9.70284524,1234.5,1234.3,4.00959]
[1610051802329,9.70249096,1234.6,1234.3,4.00959]
[1610051803731,9.70090618,1234.7,1234.5,4.00959]
[1610051804130,6.21534225,1234.7,1234.5,4.00959]
[1610051804532,6.21461052,1234.8,1234.5,4.00959]
[1610051805035,6.21461052,1234.8,1234.5,6.30629]
[1610051805236,6.21387401,1234.9,1234.5,6.30629]
[1610051805436,6.21294932,1235.1,1234.5,6.30629]
[1610051805833,6.21294932,1235.1,1235.0,4.00959]
[1610051806037,3.475,1235.2,1235.0,6.39869]
[1610051807839,3.475,1235.2,1235.1,61.1909]
[1610051808238,6.21018616,1235.8,1235.1,61.1909]
[1610051808838,3.4826724,1235.9,1235.1,61.1909]
[1610051808839,6.20946041,1235.9,1235.1,61.1909]
[1610051809241,13.1661569,1236.1,1235.1,61.1909]
[1610051809641,9.68409591,1236.1,1235.1,61.1909]
[1610051809845,3.475,1236.1,1236.0,4.00959]
[1610051811541,3.475,1236.1,1235.5,2.6073]
[1610051811746,9.6835921,1236.1,1235.5,2.6073]
[1610051811948,4.00959,1235.8,1235.6,4.00959]
[1610051812145,13.16565462,1236.1,1235.6,4.00959]
[1610051812345,6.20945976,1235.9,1235.6,4.00959]
[1610051812545,6.20945976,1235.9,1235.1,61.1909]
[1610051812746,9.69186636,1235.9,1235.1,61.1909]
[1610051813145,9.69186636,1235.9,1234.5,2.77816668]
[1610051813146,6.20994068,1235.8,1234.5,2.2967]
[1610051813345,9.05724068,1235.8,1234.4,0.48136527]
[1610051813545,12.53992492,1235.8,1234.4,0.48136527]
[1610051813945,4.00959,1235.3,1234.4,0.48136527]
[1610051814346,4.00959,1235.3,1234.2,2.9818]
[1610051814546,4.00959,1235.3,1234.0,0.48303525]
[1610051814747,9.6967689,1235.2,1233.8,0.48397807]
[1610051814946,9.69823959,1235.1,1233.7,0.48479573]
[1610051815348,9.69823959,1235.1,1233.5,57.66278524]
[1610051815349,6.2143895,1234.9,1233.5,57.66278524]
[1610051815548,8.6425895,1234.9,1233.5,57.66278524]
[1610051815746,6.21511959,1234.7,1233.4,0.48605016]
[1610051815947,4.00959,1233.7,1233.4,4.00959]
[1610051817348,2.9843,1233.9,1233.4,4.00959]
[1610051817951,4.00959,1233.8,1232.7,0.48872296]
[1610051818149,4.00959,1233.8,1232.6,2.92000236]
[1610051818550,6.21904993,1233.7,1232.6,2.431]
[1610051818752,6.21904993,1233.7,1232.4,0.48967166]
[1610051818753,6.2195645,1233.6,1232.3,2.90831084]
[1610051819153,9.1748645,1233.6,1232.3,2.90831084]
[1610051819751,2.9553,1233.6,1232.4,0.48852211]
[1610051819950,2.9553,1233.6,1233.5,4.00959]
[1610051821955,6.99389,1233.9,1233.5,4.00959]
[1610051822354,2.9843,1233.9,1233.5,4.00959]
[1610051822556,12.86786112,1234.2,1233.5,4.00959]
[1610051823158,3.1645,1234.2,1233.5,4.00959]
[1610051823657,9.70280607,1234.3,1233.5,4.00959]
[1610051823859,9.7016513,1234.4,1234.2,4.00959]
[1610051824257,9.70045264,1234.5,1234.2,4.00959]
[1610051824458,6.21478797,1234.6,1234.2,4.00959]
[1610051824858,9.69984693,1234.7,1234.2,4.00959]
[1610051825058,2.98300504,1234.8,1234.2,4.00959]
[1610051825059,6.21431165,1234.8,1234.2,4.00959]
[1610051825457,9.68868473,1235.0,1234.2,4.00959]
[1610051825658,9.68868473,1235.0,1234.2,7.09439]
[1610051825858,3.475,1235.0,1234.9,4.00959]
[1610051826058,3.475,1235.0,1234.9,6.73459]
[1610051826458,6.21151562,1235.4,1234.9,16.21349]
[1610051826657,9.69347338,1235.6,1234.9,16.21349]
[1610051826859,3.475,1235.8,1234.9,16.21349]
[1610051826860,13.16763678,1235.8,1234.9,16.21349]
[1610051827956,13.16763678,1235.8,1235.6,4.00959]
[1610051828160,3.475,1235.8,1235.6,4.00959]
[1610051828557,9.68396585,1235.8,1235.6,4.00959]
[1610051828959,3.475,1235.8,1235.6,4.00959]
[1610051830759,3.475,1235.8,1235.3,3.0838]
[1610051831159,6.3538,1235.8,1234.9,2.725]
[1610051831362,6.20971015,1235.7,1234.6,56.111]
[1610051831761,9.69421317,1235.6,1234.6,56.111]
[1610051831960,13.70380317,1235.6,1234.6,56.111]
[1610051832162,12.19026693,1235.4,1234.6,56.111]
[1610051832762,6.21109328,1235.3,1234.6,56.111]
[1610051833166,5.97911436,1235.4,1234.6,56.111]
[1610051833167,2.4959,1235.4,1234.6,56.111]
[1610051833565,2.4959,1235.4,1234.6,59.2442]
[1610051833763,9.69375656,1235.5,1234.6,59.2442]
[1610051833963,6.2107615,1235.5,1234.9,4.00959]
[1610051834564,9.69289179,1235.6,1234.9,4.00959]
[1610051834763,9.69289179,1235.6,1234.9,6.06989]
[1610051834963,2.98104022,1235.7,1234.9,6.06989]
[1610051834964,9.69256149,1235.7,1234.9,6.06989]
[1610051835363,6.20999583,1235.7,1234.9,6.06989]
[1610051835563,16.04607868,1235.8,1234.9,6.06989]
[1610051835963,16.04607868,1235.8,1235.2,4.00959]
[1610051836166,12.56350337,1235.8,1235.2,4.00959]
[1610051836564,6.3538,1235.8,1235.2,4.00959]
[1610051837865,6.3538,1235.8,1234.9,2.0603]
[1610051838066,4.00959,1235.3,1235.0,4.00959]
[1610051838865,4.00959,1235.3,1234.6,3.1332]
[1610051839067,4.00959,1235.3,1234.2,3.0848]
[1610051839465,10.22183748,1235.3,1234.1,53.8261]
[1610051839865,13.70592031,1235.3,1234.1,53.8261]
[1610051840065,12.87489208,1235.4,1234.1,53.8261]
[1610051840066,4.00959,1234.6,1234.4,4.00959]
[1610051840265,2.7322,1234.8,1234.4,4.00959]
[1610051842068,2.7322,1234.8,1234.7,4.00959]
[1610051842569,2.7322,1234.8,1234.1,53.8261]
[1610051843972,4.00959,1234.6,1234.3,4.00959]
[1610051844371,2.7322,1234.8,1234.3,4.00959]
[1610051845170,9.69697419,1235.0,1234.3,4.00959]
[1610051845573,9.69686728,1234.9,1234.3,4.00959]
[1610051845972,8.41585453,1234.9,1234.8,4.00959]
[1610051846376,2.2031,1234.9,1234.8,4.00959]
[1610051846973,9.69448502,1235.3,1234.8,4.00959]
[1610051847376,6.21122823,1235.3,1234.8,4.00959]
[1610051847576,9.69447813,1235.3,1234.8,4.00959]
[1610051847976,9.69447813,1235.3,1235.2,4.00959]
[1610051848176,6.21122823,1235.3,1235.2,4.00959]
[1610051848776,4.97385102,1235.5,1235.2,4.00959]
[1610051848777,6.20920055,1235.5,1235.2,4.00959]
[1610051849276,9.69141086,1235.6,1235.2,4.00959]
[1610051849678,6.20929118,1235.6,1235.2,4.00959]
[1610051849878,9.690987,1235.7,1235.2,4.00959]
[1610051850078,9.690987,1235.7,1235.6,4.00959]
[1610051850281,6.20890172,1235.7,1235.6,4.00959]
[1610051850681,6.20890172,1235.7,1234.9,48.26]
[1610051851080,16.04394823,1235.8,1234.9,48.26]
[1610051851482,16.04394823,1235.8,1235.0,1.24156943]
[1610051851981,6.3538,1235.8,1235.7,4.00959]
[1610051854585,3.475,1235.8,1235.7,4.00959]
[1610051854982,3.475,1235.8,1235.5,2.7456]
[1610051855383,3.475,1235.8,1235.2,2.3255]
[1610051855783,3.475,1235.8,1234.8,3.0793]
[1610051855986,4.00959,1235.6,1235.2,4.00959]
[1610051856185,7.18609,1235.6,1235.2,4.00959]
[1610051856585,7.18609,1235.6,1234.6,55.5403]
[1610051856783,6.2107106,1235.5,1234.6,55.5403]
[1610051857383,9.69355811,1235.4,1234.6,55.5403]
[1610051857784,6.21063436,1235.4,1234.6,55.5403]
[1610051857986,10.22022436,1235.4,1235.1,4.00959]
[1610051858385,13.70315593,1235.4,1235.1,4.00959]
[1610051858584,9.69356593,1235.4,1235.1,4.00959]
[1610051858984,9.69356593,1235.4,1234.6,55.5403]
[1610051859287,6.21083857,1235.3,1234.6,55.5403]
[1610051859685,9.28953857,1235.3,1234.1,2.6307]
[1610051859987,4.00959,1235.0,1234.1,2.6307]
[1610051860486,7.02479,1235.0,1234.1,2.6307]
[1610051860689,3.0152,1235.0,1234.1,2.6307]
[1610051861588,3.0152,1235.0,1234.2,1.24216244]
[1610051861988,7.02479,1235.0,1234.7,4.00959]
[1610051862188,3.0152,1235.0,1234.7,4.00959]
[1610051863791,9.22682655,1235.0,1234.7,4.00959]
[1610051863991,4.00959,1234.9,1234.7,4.00959]
[1610051864494,4.00959,1234.9,1233.9,52.8014]
[1610051864892,4.00959,1234.9,1233.9,53.04551905]
[1610051865594,9.22682655,1235.0,1233.9,53.04551905]
[1610051865794,9.22682655,1235.0,1233.9,52.8014]
[1610051865994,9.22682655,1235.0,1234.9,4.00959]
[1610051866194,7.23910605,1235.0,1234.9,4.00959]
[1610051866395,9.69391985,1235.2,1234.9,4.00959]
[1610051866595,9.28954532,1235.3,1234.9,4.00959]
[1610051866998,3.0787,1235.3,1234.9,4.00959]
[1610051867396,6.21050828,1235.5,1234.9,4.00959]
[1610051867397,6.2103058,1235.4,1234.9,4.00959]
[1610051867798,9.69322869,1235.5,1234.9,4.00959]
[1610051867996,4.00959,1235.4,1235.1,4.00959]
[1610051868198,13.70314954,1235.4,1234.5,2.9486]
[1610051868397,6.2108557,1235.3,1234.5,2.9486]
[1610051868798,8.5703557,1235.3,1234.5,2.9486]
[1610051869999,8.5703557,1235.3,1235.2,4.00959]
[1610051870199,38.5703557,1235.3,1234.5,2.9486]
[1610051870598,42.05348696,1235.3,1234.5,2.9486]
[1610051870797,42.05348696,1235.3,1234.1,2.0333]
[1610051871000,6.21094557,1235.2,1234.1,2.0333]
[1610051871199,6.21094557,1235.2,1234.0,0.24244868]
[1610051871801,6.21094557,1235.2,1234.2,1.24210194]
[1610051872002,4.00959,1235.0,1234.9,4.00959]
[1610051872202,6.52549,1235.0,1234.2,1.24210194]
[1610051873202,6.52549,1235.0,1234.1,1.24213915]
[1610051873602,36.52549,1235.0,1234.1,1.24213915]
[1610051874002,4.00959,1234.6,1234.3,4.00959]
[1610051874206,36.73969,1234.6,1234.1,1.24213915]
[1610051874605,36.73969,1234.6,1234.0,1.24244362]
[1610051875403,42.95268895,1234.6,1234.0,1.24244362]
[1610051875606,46.4371673,1234.6,1234.0,1.24244362]
[1610051876007,4.00959,1234.1,1233.9,4.00959]
[1610051876506,6.62549,1234.1,1233.9,4.00959]
[1610051877108,2.6159,1234.1,1233.9,4.00959]
[1610051881110,2.7301,1234.6,1233.9,4.00959]
[1610051881510,43.1708809,1234.9,1234.0,1.24233511]
[1610051881711,13.1708809,1234.9,1234.0,1.24233511]
[1610051882112,13.1708809,1234.9,1234.8,4.00959]
[1610051882513,13.1708809,1234.9,1234.0,1.24233511]
[1610051882514,3.475,1234.9,1234.0,1.24233511]
[1610051882718,3.475,1234.9,1233.7,62.44253348]
[1610051882912,3.475,1234.9,1233.8,0.24179402]
[1610051883613,3.475,1234.9,1233.9,0.24145109]
[1610051883813,3.475,1234.9,1234.0,54.7355]
[1610051884013,3.475,1234.9,1234.8,4.00959]
[1610051885420,3.475,1234.9,1234.8,5.25121738]
[1610051889728,3.475,1234.9,1234.8,4.00959]
[1610051892430,3.475,1234.9,1234.8,5.25132398]
[1610051893832,3.475,1234.9,1234.8,4.00959]
[1610051899938,3.475,1234.9,1234.8,5.25119431]
[1610051904342,5.6765,1234.9,1234.8,5.25119431]
[1610051912655,35.6765,1234.9,1234.8,1.24160431]
[1610051913757,5.6765,1234.9,1234.8,1.24160431]
[1610051913962,5.6765,1234.9,1234.1,1.24221917]
[1610051914164,4.00959,1234.4,1234.3,4.00959]
[1610051915161,2.5338,1234.5,1234.3,4.00959]
[1610051915358,2.5338,1234.5,1234.3,5.25187002]
[1610051916858,2.5338,1234.5,1234.4,1.24214884]
[1610051917761,5.6765,1234.9,1234.4,1.24214884]
[1610051918160,5.6765,1234.9,1234.8,4.00959]
[1610051918761,35.6765,1234.9,1234.8,4.00959]
[1610051918961,35.6765,1234.9,1234.4,1.24214884]
[1610051919562,35.6765,1234.9,1234.8,1.242208]
[1610051920163,39.68609,1234.9,1234.8,1.242208]
[1610051920965,39.68609,1234.9,1234.5,1.24226657]
[1610051921767,9.68609,1234.9,1234.5,1.24226657]
[1610051921966,5.6765,1234.9,1234.5,1.24226657]
[1610051922268,5.6765,1234.9,1234.8,4.00959]
[1610051923871,5.6765,1234.9,1234.8,5.25147331]
[1610051928880,5.6765,1234.9,1234.8,1.24188331]
[1610051929481,35.6765,1234.9,1234.8,1.24188331]
[1610051929889,35.6765,1234.9,1234.4,1.24205682]
[1610051930284,4.00959,1234.5,1234.4,1.24205682]
[1610051930477,6.23129,1234.5,1234.4,1.24205682]
[1610051931485,36.23129,1234.5,1234.4,1.24205682]
[1610051932678,36.23129,1234.5,1234.1,4.00959]
[1610051933579,6.23129,1234.5,1234.1,4.00959]
[1610051933779,36.23129,1234.5,1234.1,4.00959]
[1610051934682,6.23129,1234.5,1234.1,4.00959]
[1610051935282,2.2217,1234.5,1234.1,4.00959]
[1610051935481,30.0,1234.7,1234.1,4.00959]
[1610051935684,2.6716,1234.5,1234.2,1.24233429]
[1610051936285,2.6716,1234.5,1234.4,4.00959]
[1610051936684,5.6765,1234.9,1234.4,4.00959]
[1610051937784,3.475,1234.9,1234.4,4.25139115]
[1610051938085,3.475,1234.9,1234.5,0.24182986]
[1610051938286,3.475,1234.9,1234.8,4.00959]
[1610051938488,3.475,1234.9,1234.8,7.13729]
[1610051938687,6.912,1235.4,1234.8,7.13729]
[1610051939690,6.912,1235.4,1234.9,1.24147238]
[1610051940291,6.912,1235.4,1235.3,4.00959]
[1610051941393,6.912,1235.4,1235.1,1.9523]
[1610051941394,36.912,1235.4,1235.1,1.9523]
[1610051942195,36.912,1235.4,1234.4,55.688]
[1610051942394,6.912,1235.4,1234.8,4.00959]
[1610051942794,36.912,1235.4,1234.8,4.00959]
[1610051942995,2.0314,1235.3,1234.8,4.00959]
[1610051943196,30.0,1235.2,1234.8,4.00959]
[1610051943996,30.0,1235.2,1234.4,55.688]
[1610051944397,30.0,1235.2,1234.6,4.00959]
[1610051944798,2.3697,1235.0,1234.6,4.00959]
[1610051944999,32.3697,1235.0,1234.4,55.688]
[1610051945200,32.3697,1235.0,1234.3,2.9376]
[1610051945400,32.3697,1235.0,1234.0,2.69934517]
[1610051946101,2.3697,1235.0,1234.0,2.69934517]
[1610051946298,2.3697,1235.0,1234.3,4.00959]
[1610051946299,4.00959,1234.8,1234.3,4.00959]
[1610051946599,2.3697,1235.0,1234.3,4.00959]
[1610051946799,32.3697,1235.0,1234.3,4.00959]
[1610051947901,2.3697,1235.0,1234.3,4.00959]
[1610051948402,4.00959,1234.5,1234.4,1.24195353]
[1610051949101,32.3697,1235.0,1234.4,1.24195353]
[1610051950404,4.00959,1234.5,1234.4,1.24195353]
[1610051951206,5.8447,1235.0,1234.4,1.24195353]
[1610051952404,5.8447,1235.0,1234.8,4.00959]
[1610051953809,5.8447,1235.0,1234.9,1.24141801]
[1610051954007,2.3697,1235.0,1234.9,1.24141801]
[1610051954208,6.912,1235.4,1234.9,1.24141801]
[1610051954407,6.912,1235.4,1235.3,4.00959]
[1610051954607,6.912,1235.4,1234.9,1.24141801]
[1610051954807,30.0,1235.3,1234.9,1.24141801]
[1610051955207,30.0,1235.3,1234.6,2.9423]
[1610051955607,6.912,1235.4,1234.6,2.9423]
[1610051956309,4.00959,1235.2,1234.9,4.00959]
[1610051956508,6.912,1235.4,1234.9,4.00959]
[1610051957910,36.912,1235.4,1234.9,4.00959]
[1610051958310,36.912,1235.4,1235.1,4.00959]
[1610051958911,36.912,1235.4,1235.0,1.24149973]
[1610051959611,36.912,1235.4,1234.7,1.24173155]
[1610051960412,4.00959,1234.8,1234.7,1.24173155]
[1610051960815,43.39472684,1235.4,1234.7,1.24173155]
[1610051961914,6.48316509,1235.3,1234.7,1.24173155]
[1610051962315,2.6645,1235.3,1235.1,4.00959]
[1610051963316,6.912,1235.4,1235.1,4.00959]
[1610051963717,6.912,1235.4,1235.2,1.24151075]
[1610051964417,6.912,1235.4,1235.3,4.00959]
[1610051964617,6.912,1235.4,1235.3,11.54909]
[1610051966319,3.475,1235.6,1235.3,11.54909]
[1610051966522,3.475,1235.6,1235.3,12.79022588]
[1610051967824,3.475,1235.6,1235.4,1.24116311]
[1610051968426,3.475,1235.6,1235.5,4.00959]
[1610051968826,3.475,1235.6,1235.5,7.07839]
[1610051969428,3.475,1235.6,1235.5,8.3194886]
[1610051970129,33.475,1235.6,1235.5,8.3194886]
[1610051970531,33.475,1235.6,1235.5,4.3098986]
[1610051970931,33.475,1235.6,1235.5,1.2410986]
[1610051972132,3.475,1235.6,1235.5,1.2410986]
[1610051972933,30.0,1235.9,1235.5,1.2410986]
[1610051973134,10.23,1236.0,1235.5,1.2410986]
[1610051973335,40.23,1236.0,1235.5,1.2410986]
[1610051974536,44.23959,1236.0,1235.5,1.2410986]
[1610051974737,50.71936239,1236.0,1235.5,1.2410986]
[1610051974938,44.23959,1236.0,1235.5,1.2410986]
[1610051975738,50.71955564,1236.0,1235.5,1.2410986]
[1610051976039,50.69670247,1236.0,1235.5,1.2410986]
[1610051976240,40.48955564,1236.0,1235.5,1.2410986]
[1610051976439,40.48955564,1236.0,1235.6,4.00959]
[1610051977142,40.48955564,1236.0,1235.5,1.2410986]
[1610051977543,43.09105564,1236.0,1235.5,1.2410986]
[1610051978441,4.00959,1235.8,1235.5,1.2410986]
[1610051978641,30.0,1235.7,1235.5,1.2410986]
[1610051979442,32.5771,1235.7,1235.5,1.2410986]
[1610051986455,32.5771,1235.7,1235.6,4.00959]
[1610051986857,32.5771,1235.7,1235.5,1.2410986]
[1610051987256,39.05810133,1235.7,1235.5,1.2410986]
[1610051987658,6.48125398,1235.6,1235.5,1.2410986]
[1610051987857,36.48125398,1235.6,1235.5,1.2410986]
[1610051988058,41.42838503,1235.6,1235.0,1.24148285]
[1610051988457,4.00959,1235.2,1235.0,1.24148285]
[1610051988659,30.0,1235.1,1235.0,1.24148285]
[1610051989458,30.0,1235.1,1234.7,1.24163581]
[1610051990861,30.0,1235.1,1234.3,4.00959]
[1610051992061,30.0,1235.1,1234.4,1.24196188]
[1610051992462,4.00959,1234.5,1234.4,1.24196188]
[1610051992662,34.00959,1234.5,1234.4,1.24196188]
[1610051992862,30.0,1234.5,1234.4,1.24196188]
[1610051993562,30.0,1234.7,1234.2,1.24204022]
[1610051993765,30.0,1234.5,1234.2,1.24204022]
[1610051994765,30.0,1234.4,1234.2,1.24204022]
[1610051996167,30.0,1234.4,1234.2,1.48781411]
[1610051996566,30.0,1234.4,1234.3,4.00959]
[1610051997166,2.904,1234.8,1234.3,4.00959]
[1610051997566,2.904,1234.8,1234.3,5.25135955]
[1610051997766,2.904,1234.8,1234.3,5.49745181]
[1610051997967,30.0,1235.1,1234.3,5.49745181]
[1610051998166,30.0,1235.1,1234.4,0.24608372]
[1610051998569,30.0,1235.1,1234.9,4.00959]
[1610052000369,30.0,1235.1,1235.0,1.24164617]
[1610052002672,2.0054,1235.2,1235.0,1.24164617]
[1610052002871,30.0,1235.3,1235.0,1.24164617]
[1610052004472,30.0,1235.3,1235.1,4.00959]
[1610052006072,30.0,1235.3,1235.2,1.24151248]
[1610052007378,30.0,1235.3,1234.9,1.24159]
[1610052007577,33.1468,1235.3,1234.9,1.24159]
[1610052008579,4.00959,1235.1,1234.9,1.24159]
[1610052008781,30.0,1235.0,1234.9,1.24159]
[1610052009181,32.9603,1235.0,1234.9,1.24159]
[1610052010684,36.96989,1235.0,1234.9,1.24159]
[1610052011483,32.9603,1235.0,1234.9,1.24159]
[1610052012585,32.9603,1235.0,1234.9,5.25118]
[1610052014686,36.96989,1235.0,1234.9,5.25118]
[1610052014887,32.9603,1235.0,1234.9,5.25118]
[1610052016789,36.96989,1235.0,1234.9,5.25118]
[1610052016989,32.9603,1235.0,1234.9,5.25118]
[1610052018690,36.96989,1235.0,1234.9,5.25118]
[1610052018891,32.9603,1235.0,1234.9,5.25118]
[1610052019992,2.9603,1235.0,1234.9,5.25118]
[1610052020193,30.0,1235.0,1234.9,5.25118]
[1610052021094,30.0,1235.0,1234.9,60.73478]
[1610052021294,30.0,1235.3,1234.9,60.73478]
[1610052022596,30.0,1235.3,1235.0,1.24133761]
[1610052022798,34.00959,1235.3,1235.2,4.00959]
[1610052023197,30.0,1235.3,1235.2,4.00959]
[1610052023900,30.0,1235.3,1235.2,5.25096125]
[1610052024802,34.00959,1235.3,1235.2,5.25096125]
[1610052025002,34.00959,1235.3,1235.2,1.24137125]
[1610052025502,30.0,1235.3,1235.2,1.24137125]
[1610052026604,30.0,1235.3,1235.0,1.24126902]
[1610052026804,30.0,1235.3,1235.2,4.00959]
[1610052027906,30.0,1235.3,1235.2,5.25075508]
[1610052030406,33.475,1235.4,1235.3,6.99]
[1610052030607,3.475,1235.4,1235.2,5.25075508]
[1610052031206,3.475,1235.4,1235.3,63.0425]
[1610052031810,3.475,1235.4,1235.2,5.25075508]
[1610052032211,3.475,1235.4,1235.3,1.24100671]
[1610052035810,3.475,1235.4,1235.3,1.48803927]
[1610052037211,3.475,1235.4,1235.3,3.58923927]
[1610052037410,33.475,1236.2,1235.3,3.58923927]
[1610052037611,33.475,1236.2,1235.7,46.5955]
[1610052038011,30.0,1236.1,1235.7,46.5955]
[1610052038812,30.0,1236.1,1236.0,4.00959]
[1610052040114,30.0,1236.1,1235.8,1.24050246]
[1610052040314,31.9872,1236.1,1235.8,1.24050246]
[1610052040514,31.9872,1236.1,1235.3,2.34709911]
[1610052040716,31.9872,1236.1,1235.3,2.1012]
[1610052040916,31.9872,1236.1,1235.6,4.00959]
[1610052041117,38.46463697,1236.1,1235.3,2.1012]
[1610052041416,6.47764475,1236.0,1235.3,2.1012]
[1610052041617,30.0,1235.9,1235.3,2.1012]
[1610052042019,30.0,1235.9,1235.0,49.24882668]
[1610052042218,36.47814512,1235.9,1235.4,1.2408597]
[1610052042621,6.47841806,1235.8,1235.4,1.2408597]
[1610052042818,30.0,1235.7,1235.4,1.2408597]
[1610052043219,36.47876062,1235.7,1235.4,1.2408597]
[1610052043619,30.0,1235.7,1235.4,1.2408597]
[1610052043822,30.0,1235.7,1235.1,1.24093769]
[1610052044820,30.0,1235.7,1235.3,4.00959]
[1610052046322,30.0,1235.7,1235.4,1.24073685]
[1610052046522,30.0,1235.6,1235.4,1.24073685]
[1610052046824,30.0,1235.6,1235.5,4.00959]
[1610052048125,30.0,1235.6,1235.5,5.25031188]
[1610052048725,30.0,1235.6,1235.5,1.24072188]
[1610052049425,30.0,1235.7,1235.5,1.24072188]
[1610052049628,30.0,1235.7,1235.3,4.00959]
[1610052050928,30.0,1235.7,1235.4,1.24091109]
[1610052051731,36.47903717,1235.7,1235.4,1.24091109]
[1610052052131,6.47730965,1235.5,1235.4,1.24091109]
[1610052052329,39.40360965,1235.5,1234.5,0.24826501]
[1610052052529,46.283,1235.4,1234.4,2.0553]
[1610052052730,30.0,1235.3,1234.4,2.0553]
[1610052052930,4.00959,1234.5,1234.2,0.24832094]
[1610052053129,30.0,1234.4,1234.1,0.24833616]
[1610052053530,30.0,1234.4,1233.9,0.24838307]
[1610052053732,30.0,1234.4,1234.2,1.24182953]
[1610052053931,32.1531,1234.4,1234.2,1.24182953]
[1610052054330,32.1531,1234.4,1233.8,0.24839625]
[1610052054331,32.1531,1234.4,1233.7,0.2484002]
[1610052054732,32.1531,1234.4,1233.6,0.49680041]
[1610052054733,93.477,1234.4,1233.6,0.24843224]
[1610052054934,4.00959,1233.7,1233.6,0.24843224]
[1610052055131,34.00959,1233.7,1233.5,0.24844857]
[1610052055331,34.00959,1233.7,1233.4,4.75491241]
[1610052055531,34.00959,1233.7,1233.4,4.25804792]
[1610052056031,34.00959,1233.7,1233.4,4.00959]
[1610052056432,34.00959,1233.7,1233.5,1.24227557]
[1610052058037,34.00959,1233.7,1233.4,4.00959]
[1610052058235,34.00959,1233.7,1233.3,0.24846819]
[1610052058636,34.00959,1233.7,1233.1,0.24852516]
[1610052058835,4.00959,1233.2,1233.1,0.24852516]
[1610052059036,34.00959,1233.2,1232.9,0.24855597]
[1610052059235,36.49249,1233.2,1232.9,0.24855597]
[1610052059436,36.49249,1233.2,1232.7,0.24859292]
[1610052060037,36.49249,1233.2,1232.6,0.24861182]
[1610052060437,6.49249,1233.2,1232.6,0.24861182]
[1610052060836,6.49249,1233.2,1232.8,4.00959]
[1610052061039,36.49249,1233.2,1232.6,0.24861182]
[1610052061237,36.49249,1233.2,1232.7,1.49150279]
[1610052061839,36.49249,1233.2,1232.7,1.24289927]
[1610052062839,4.00959,1232.9,1232.8,4.00959]
[1610052063039,32.4829,1233.2,1232.8,4.00959]
[1610052064345,2.4829,1233.2,1232.8,4.00959]
[1610052064544,32.4829,1233.2,1232.8,4.00959]
[1610052064944,4.00959,1232.9,1232.8,4.00959]
[1610052066347,34.00959,1232.9,1232.6,0.24861075]
[1610052066747,34.00959,1232.9,1232.8,1.24297466]
[1610052067350,4.00959,1232.9,1232.8,1.24297466]
[1610052067750,34.00959,1232.9,1232.8,1.24297466]
[1610052067951,34.00959,1232.9,1232.6,4.11372584]